[Event "Kragero Resort International 2022"]
[Site "Kragero"]
[Date "2022.02.26"]
[Round "8.7"]
[White "Omarsson, Adam"]
[Black "Strand, Amund Pihl"]
[Result "0-1"]
[ECO "A77"]
[WhiteElo "1546"]
[BlackElo "1748"]
[Annotator "NA"]
[PlyCount "74"]
[EventDate "2022.02.23"]
[EventType "swiss"]
[EventCountry "NOR"]
[SourceTitle "playchess.com"]
[Source "ChessBase"]
[SourceQuality "1"]
[TimeControl "5400+30"]

1. d4 {[%emt 0:00:02]} Nf6 {[%emt 0:03:16]} 2. c4 {[%emt 0:00:25]} c5 {[%emt 0:00:09]} 3. d5 {[%emt 0:00:45]} e6 {[%emt 0:00:09]} 4. Nc3 {[%emt 0:01:09]} exd5 {[%emt 0:00:08]} 5. cxd5 {[%emt 0:01:06]} d6 {[%emt 0:00:08]} 6. e4 {[%emt 0:01:02]} g6 {[%emt 0:00:08]} 7. h3 {[%emt 0:00:51]} Bg7 {[%emt 0:00:59]} 8. Nf3 {[%emt 0:01:19]} O-O {[%emt 0:00:12]} 9. Be2 {[%emt 0:00:54]} Re8 {[%emt 0:06:54]} 10. Nd2 {[%emt 0:00:52]} Nbd7 {[%emt 0:01:34]} 11. O-O {[%emt 0:01:27]} a6 {[%emt 0:02:38]} 12. a4 {[%emt 0:01:07]} Rb8 {[%emt 0:00:46]} 13. a5 {[%emt 0:01:32]} b5 {[%emt 0:02:46]} 14. axb6 {[%emt 0:00:51]} Rxb6 {[%emt 0:00:08]} 15. Nc4 {[%emt 0:00:14]} Rb4 {[%emt 0:02:27]} 16. Nxd6 {[%emt 0:00:54]} Nxe4 {[%emt 0:01:48]} 17. Ndxe4 {[%emt 0:00:02]} Rexe4 {[%emt 0:00:32]} 18. Nxe4 {[%emt 0:00:07]} Rxe4 {[%emt 0:00:38]} 19. Ra4 {[%emt 0:08:47]} Bd4 {[%emt 0:09:51]} 20. Bf3 {[%emt 0:00:55]} Rh4 {[%emt 0:01:50]} 21. Re1 {[%emt 0:10:59]} Nb6 {[%emt 0:13:03]} 22. Ra1 {[%emt 0:00:00]} Kg7 {[%emt 0:18:29]} 23. d6 {[%emt 0:00:00]} Qxd6 {[%emt 0:02:40]} 24. Be3 {[%emt 0:00:00]} Nc4 {[%emt 0:02:39]} 25. Bxd4+ {[%emt 0:00:00]} Rxd4 {[%emt 0:02:25]} 26. Qe2 {[%emt 0:00:00]} Be6 {[%emt 0:06:49]} 27. Rad1 {[%emt 0:00:00]} Qb6 {[%emt 0:03:58]} 28. Rxd4 {[%emt 0:00:00]} cxd4 {[%emt 0:06:26]} 29. Rc1 {[%emt 0:04:11]} Qb3 {[%emt 0:00:00]} 30. Qd1 Qxb2 {[%emt 0:02:14]} 31. Rc2 {[%emt 0:00:00]} Qb6 {[%emt 0:00:00]} 32. Qd3 {[%emt 0:02:05]} Ne5 {[%emt 0:00:00]} 33. Qe4 Nxf3+ {[%emt 0:01:48]} 34. Qxf3 {[%emt 0:00:00]} Qb1+ {[%emt 0:00:12]} 35. Kh2 {[%emt 0:00:00]} Qxc2 {[%emt 0:00:00]} 36. Qf4 {[%emt 0:00:00]} Qc5 {[%emt 0:01:05]} 37. Qd2 {[%emt 0:00:17]} a5 {[%emt 0:00:00]} 0-1

[Event "Kragero Resort International 2022"]
[Site "Kragero"]
[Date "2022.02.26"]
[Round "8.8"]
[White "Digernes, Mikael"]
[Black "Alvanjyan, Aida"]
[Result "0-1"]
[ECO "C01"]
[WhiteElo "1723"]
[BlackElo "1566"]
[Annotator "NA"]
[PlyCount "64"]
[EventDate "2022.02.23"]
[EventType "swiss"]
[EventCountry "NOR"]
[SourceTitle "playchess.com"]
[Source "ChessBase"]
[SourceQuality "1"]
[TimeControl "5400+30"]

1. e4 {[%emt 0:01:36]} e6 {[%emt 0:00:15]} 2. d4 {[%emt 0:01:06]} d5 {[%emt 0:00:04]} 3. exd5 {[%emt 0:00:09]} exd5 {[%emt 0:00:04]} 4. Nf3 {[%emt 0:00:14]} Bd6 {[%emt 0:00:12]} 5. c3 {[%emt 0:00:20]} Ne7 {[%emt 0:00:10]} 6. Bd3 {[%emt 0:00:10]} Bf5 {[%emt 0:00:15]} 7. O-O {[%emt 0:00:42]} O-O {[%emt 0:00:14]} 8. Re1 {[%emt 0:00:34]} Bg6 {[%emt 0:02:40]} 9. Bxg6 {[%emt 0:02:19]} Nxg6 {[%emt 0:02:28]} 10. Qb3 {[%emt 0:01:17]} b6 {[%emt 0:06:44]} 11. Nbd2 {[%emt 0:03:32]} Nc6 {[%emt 0:06:16]} 12. Nf1 {[%emt 0:02:07]} Nce7 {[%emt 0:03:08]} 13. Ng3 {[%emt 0:02:40]} Qd7 {[%emt 0:05:45]} 14. Bg5 {[%emt 0:09:45]} Rfe8 {[%emt 0:05:43]} 15. Qc2 {[%emt 0:06:01]} Rac8 {[%emt 0:03:59]} 16. Bxe7 {[%emt 0:09:02]} Bxe7 {[%emt 0:02:12]} 17. Nf5 {[%emt 0:03:29]} Bf6 {[%emt 0:02:09]} 18. Ne3 {[%emt 0:02:57]} Ne7 {[%emt 0:09:02]} 19. h3 {[%emt 0:03:08]} g6 {[%emt 0:03:34]} 20. Ng4 {[%emt 0:04:15]} Bg7 {[%emt 0:01:23]} 21. Nfe5 {[%emt 0:02:14]} Qd6 {[%emt 0:04:03]} 22. Qd2 {[%emt 0:03:42]} Nf5 {[%emt 0:03:01]} 23. Qf4 {[%emt 0:03:41]} c5 {[%emt 0:02:27]} 24. dxc5 {[%emt 0:03:10]} bxc5 {[%emt 0:04:14]} 25. Rad1 {[%emt 0:02:38]} h5 {[%emt 0:03:17]} 26. Qf3 {[%emt 0:06:28]} Bxe5 {[%emt 0:04:33]} 27. Rxd5 {[%emt 0:05:34]} hxg4 {[%emt 0:02:54]} 28. hxg4 {[%emt 0:00:15]} Bh2+ {[%emt 0:02:25]} 29. Kf1 {[%emt 0:00:06]} Qa6+ {[%emt 0:01:40]} 30. Rd3 {[%emt 0:00:31]} Red8 {[%emt 0:01:07]} 31. Red1 {[%emt 0:00:15]} Rxd3 {[%emt 0:00:15]} 32. Rxd3 {[%emt 0:00:09]} Rd8 {[%emt 0:00:25]} 0-1

[Event "Kragero Resort International 2022"]
[Site "Kragero"]
[Date "2022.02.26"]
[Round "8.11"]
[White "Injac, Teodora"]
[Black "Thorhallsson, Simon"]
[Result "1/2-1/2"]
[ECO "E65"]
[WhiteElo "2407"]
[BlackElo "2245"]
[Annotator "NA"]
[PlyCount "52"]
[EventDate "2022.02.23"]
[EventType "swiss"]
[EventCountry "NOR"]
[SourceTitle "playchess.com"]
[Source "ChessBase"]
[SourceQuality "1"]
[TimeControl "5400+30"]

1. d4 {[%emt 0:05:06]} Nf6 {[%emt 0:00:09]} 2. c4 {[%emt 0:00:18]} g6 {[%emt 0:00:04]} 3. Nf3 {[%emt 0:00:32]} Bg7 {[%emt 0:00:06]} 4. g3 {[%emt 0:00:27]} O-O {[%emt 0:01:08]} 5. Bg2 {[%emt 0:00:05]} d6 {[%emt 0:00:17]} 6. O-O {[%emt 0:00:43]} c5 {[%emt 0:01:07]} 7. Nc3 {[%emt 0:00:41]} Nc6 {[%emt 0:00:14]} 8. dxc5 {[%emt 0:01:37]} dxc5 {[%emt 0:00:08]} 9. Be3 {[%emt 0:00:12]} b6 {[%emt 0:06:34]} 10. Ne5 {[%emt 0:05:29]} Nxe5 {[%emt 0:00:35]} 11. Qxd8 {[%emt 0:08:54]} Rxd8 {[%emt 0:00:08]} 12. Bxa8 {[%emt 0:00:03]} Be6 {[%emt 0:02:32]} 13. Bb7 {[%emt 0:18:12]} Nxc4 {[%emt 0:01:55]} 14. Bc1 {[%emt 0:00:23]} Ne8 {[%emt 0:11:19]} 15. Rd1 {[%emt 0:05:38]} Rxd1+ {[%emt 0:02:32]} 16. Nxd1 {[%emt 0:00:02]} Ned6 {[%emt 0:02:17]} 17. Bf3 {[%emt 0:08:37]} b5 {[%emt 0:18:04]} 18. Nc3 {[%emt 0:06:24]} Bxc3 {[%emt 0:03:51]} 19. bxc3 {[%emt 0:00:23]} b4 {[%emt 0:01:10]} 20. cxb4 {[%emt 0:06:56]} cxb4 {[%emt 0:00:06]} 21. Bc6 {[%emt 0:01:44]} a5 {[%emt 0:01:05]} 22. Bf4 {[%emt 0:05:02]} Nb6 {[%emt 0:06:04]} 23. Be3 {[%emt 0:02:12]} Nbc4 {[%emt 0:08:34]} 24. Bf4 {[%emt 0:03:30]} Nb6 {[%emt 0:08:09]} 25. Be3 {[%emt 0:00:07]} Nbc4 {[%emt 0:02:50]} 26. Bf4 {[%emt 0:02:44]} Nb6 {[%emt 0:00:15]} 1/2-1/2

[Event "Kragero Resort International 2022"]
[Site "Kragero"]
[Date "2022.02.26"]
[Round "8.12"]
[White "Nikolic, Vladan"]
[Black "Sagafos, Magne"]
[Result "0-1"]
[ECO "E63"]
[WhiteElo "2218"]
[BlackElo "2386"]
[Annotator "NA"]
[PlyCount "80"]
[EventDate "2022.02.23"]
[EventType "swiss"]
[EventCountry "NOR"]
[SourceTitle "playchess.com"]
[Source "ChessBase"]
[SourceQuality "1"]
[TimeControl "5400+30"]

1. d4 {[%emt 0:00:03]} Nf6 {[%emt 0:02:24]} 2. c4 {[%emt 0:00:06]} g6 {[%emt 0:00:05]} 3. g3 {[%emt 0:00:13]} Bg7 {[%emt 0:00:09]} 4. Bg2 {[%emt 0:00:05]} O-O {[%emt 0:00:14]} 5. Nc3 {[%emt 0:00:06]} d6 {[%emt 0:00:08]} 6. Nf3 {[%emt 0:00:09]} Nc6 {[%emt 0:00:18]} 7. O-O {[%emt 0:00:15]} a6 {[%emt 0:00:08]} 8. b3 {[%emt 0:00:46]} Rb8 {[%emt 0:04:22]} 9. d5 {[%emt 0:01:43]} Na5 {[%emt 0:01:38]} 10. Bg5 {[%emt 0:02:05]} c5 {[%emt 0:07:40]} 11. dxc6 {[%emt 0:02:24]} bxc6 {[%emt 0:06:13]} 12. Rc1 {[%emt 0:04:53]} c5 {[%emt 0:15:28]} 13. Qd2 {[%emt 0:07:56]} Nc6 {[%emt 0:13:00]} 14. Ne1 {[%emt 0:03:35]} Nd4 {[%emt 0:04:32]} 15. Nc2 {[%emt 0:01:45]} Ne6 {[%emt 0:03:20]} 16. Bh6 {[%emt 0:02:26]} Bxh6 {[%emt 0:02:03]} 17. Qxh6 {[%emt 0:00:08]} Bd7 {[%emt 0:06:12]} 18. Ne4 {[%emt 0:10:30]} Nxe4 {[%emt 0:01:35]} 19. Bxe4 {[%emt 0:00:14]} Qa5 {[%emt 0:00:41]} 20. Ra1 {[%emt 0:12:11]} Qc3 {[%emt 0:02:16]} 21. Ne3 {[%emt 0:00:43]} Qe5 {[%emt 0:05:27]} 22. Bf3 {[%emt 0:07:14]} Nd4 {[%emt 0:02:08]} 23. Rad1 {[%emt 0:04:21]} a5 {[%emt 0:04:35]} 24. Rd3 {[%emt 0:01:14]} a4 {[%emt 0:06:48]} 25. bxa4 {[%emt 0:00:16]} Rb2 {[%emt 0:03:07]} 26. Nd5 {[%emt 0:02:23]} Nf5 {[%emt 0:03:26]} 27. Qc1 {[%emt 0:01:05]} e6 {[%emt 0:02:48]} 28. Ne3 {[%emt 0:08:03]} Nd4 {[%emt 0:00:05]} 29. Ng4 {[%emt 0:00:24]} Qg7 {[%emt 0:00:14]} 30. Ra3 {[%emt 0:06:58]} Rxe2 {[%emt 0:00:12]} 31. Qd1 {[%emt 0:03:04]} Rb2 {[%emt 0:01:51]} 32. a5 {[%emt 0:00:27]} h5 {[%emt 0:00:26]} 33. Ne3 {[%emt 0:00:22]} Rd2 {[%emt 0:00:03]} 34. Bg2 {[%emt 0:01:43]} Rxd1 {[%emt 0:00:09]} 35. Rxd1 {[%emt 0:00:05]} Bc6 {[%emt 0:00:57]} 36. a6 {[%emt 0:01:15]} Ne2+ {[%emt 0:00:22]} 37. Kf1 {[%emt 0:00:25]} Bxg2+ {[%emt 0:00:08]} 38. Kxg2 {[%emt 0:00:09]} Qb2 {[%emt 0:00:12]} 39. Rdd3 {[%emt 0:00:31]} Nd4 {[%emt 0:00:42]} 40. a7 {[%emt 0:00:08]} Qb7+ {[%emt 0:00:08]} 0-1

[Event "Kragero Resort International 2022"]
[Site "Kragero"]
[Date "2022.02.26"]
[Round "8.16"]
[White "Osmak, Yuliia"]
[Black "Radeva, Viktoria"]
[Result "1-0"]
[ECO "D36"]
[WhiteElo "2432"]
[BlackElo "2261"]
[Annotator "NA"]
[PlyCount "85"]
[EventDate "2022.02.23"]
[EventType "swiss"]
[EventCountry "NOR"]
[SourceTitle "playchess.com"]
[Source "ChessBase"]
[SourceQuality "1"]
[TimeControl "5400+30"]

1. c4 {[%emt 0:06:01]} e6 {[%emt 0:00:07]} 2. Nc3 {[%emt 0:00:15]} d5 {[%emt 0:00:08]} 3. d4 {[%emt 0:00:06]} Nf6 {[%emt 0:00:17]} 4. cxd5 {[%emt 0:00:22]} exd5 {[%emt 0:00:04]} 5. Bg5 {[%emt 0:00:08]} c6 {[%emt 0:00:28]} 6. e3 {[%emt 0:01:01]} Bd6 {[%emt 0:00:46]} 7. Bd3 {[%emt 0:01:13]} O-O {[%emt 0:00:57]} 8. Qc2 {[%emt 0:04:19]} h6 {[%emt 0:00:08]} 9. Bh4 {[%emt 0:00:06]} Re8 {[%emt 0:00:51]} 10. Nf3 {[%emt 0:01:58]} Nbd7 {[%emt 0:00:15]} 11. Bg3 {[%emt 0:00:53]} Nf8 {[%emt 0:04:17]} 12. O-O {[%emt 0:07:56]} Ne6 {[%emt 0:07:28]} 13. Ne5 {[%emt 0:08:30]} Ng5 {[%emt 0:15:19]} 14. f3 {[%emt 0:11:44]} a6 {[%emt 0:08:43]} 15. Rae1 {[%emt 0:07:10]} c5 {[%emt 0:04:52]} 16. f4 {[%emt 0:09:06]} Ne6 {[%emt 0:02:50]} 17. Bh4 {[%emt 0:03:30]} Be7 {[%emt 0:06:13]} 18. Bf5 {[%emt 0:14:41]} cxd4 {[%emt 0:04:34]} 19. Bxe6 {[%emt 0:00:13]} Bxe6 {[%emt 0:00:07]} 20. exd4 {[%emt 0:00:03]} Rc8 {[%emt 0:01:25]} 21. Qb3 {[%emt 0:03:28]} Ne4 {[%emt 0:06:17]} 22. Bxe7 {[%emt 0:00:53]} Rxe7 {[%emt 0:00:19]} 23. f5 {[%emt 0:01:40]} Nd2 {[%emt 0:03:01]} 24. Qd1 {[%emt 0:02:08]} Nxf1 {[%emt 0:00:07]} 25. fxe6 {[%emt 0:00:06]} Rxe6 {[%emt 0:00:39]} 26. Rxf1 {[%emt 0:00:45]} f6 {[%emt 0:03:51]} 27. Ng6 {[%emt 0:02:23]} b5 {[%emt 0:01:44]} 28. Qg4 {[%emt 0:00:49]} Rcc6 {[%emt 0:03:21]} 29. Nf4 {[%emt 0:02:32]} Red6 {[%emt 0:00:56]} 30. Nh5 {[%emt 0:02:31]} Qe7 {[%emt 0:01:20]} 31. Ng3 {[%emt 0:03:15]} Qe3+ {[%emt 0:03:12]} 32. Kh1 {[%emt 0:00:02]} Qg5 {[%emt 0:00:11]} 33. Qe2 {[%emt 0:02:09]} b4 {[%emt 0:01:55]} 34. Na4 {[%emt 0:01:13]} Re6 {[%emt 0:00:27]} 35. Qd1 {[%emt 0:00:19]} Qe3 {[%emt 0:03:15]} 36. Nc5 {[%emt 0:00:22]} Re8 {[%emt 0:00:13]} 37. Qa4 {[%emt 0:01:40]} Rb6 {[%emt 0:04:34]} 38. Qd7 {[%emt 0:01:56]} Qe7 {[%emt 0:01:19]} 39. Qxd5+ {[%emt 0:00:08]} Kh8 {[%emt 0:00:10]} 40. Nf5 {[%emt 0:00:42]} Qe2 {[%emt 0:00:30]} 41. Kg1 {[%emt 0:00:33]} Qg4 {[%emt 0:01:38]} 42. Qd7 {[%emt 0:01:48]} Re2 {[%emt 0:01:15]} 43. Ng3 {[%emt 0:00:16]} 1-0

[Event "Kragero Resort International 2022"]
[Site "Kragero"]
[Date "2022.02.26"]
[Round "8.17"]
[White "Reimanis, Ritvars"]
[Black "Van Dael, Siem"]
[Result "1/2-1/2"]
[ECO "A38"]
[WhiteElo "2397"]
[BlackElo "2303"]
[Annotator "ChessBase"]
[PlyCount "49"]
[EventDate "2022.02.23"]
[EventType "swiss"]
[EventCountry "NOR"]
[SourceTitle "playchess.com"]
[Source "ChessBase"]
[SourceQuality "1"]
[TimeControl "5400+30"]

1. Nf3 {[%emt 0:03:07]} Nf6 {[%emt 0:00:08]} 2. c4 {[%emt 0:00:05]} g6 {[%emt 0:00:05]} 3. Nc3 {[%emt 0:00:04]} Bg7 {[%emt 0:00:04]} 4. g3 {[%emt 0:00:05]} O-O {[%emt 0:00:07]} 5. Bg2 {[%emt 0:00:03]} d6 {[%emt 0:00:06]} 6. O-O {[%emt 0:00:07]} c5 {[%emt 0:00:58]} 7. Rb1 {[%emt 0:00:08]} Nc6 {[%emt 0:01:28]} 8. a3 {[%emt 0:00:05]} a5 {[%emt 0:07:21]} 9. e4 {[%emt 0:00:18]} Ne8 {[%emt 0:00:53]} 10. Ne1 {[%emt 0:04:34]} Nc7 {[%emt 0:00:26]} 11. Nc2 {[%emt 0:00:19]} Ne6 {[%emt 0:00:55]} 12. b4 {[%emt 0:01:27]} axb4 {[%emt 0:00:20]} 13. axb4 {[%emt 0:00:05]} cxb4 {[%emt 0:01:49]} 14. Nxb4 {[%emt 0:00:19]} Ned4 {[%emt 0:00:59]} 15. Nc2 {[%emt 0:02:17]} Be6 {[%emt 0:04:40]} 16. d3 {[%emt 0:01:20]} Rb8 {[%emt 0:01:49]} 17. Be3 {[%emt 0:02:36]} Qd7 {[%emt 0:03:54]} 18. Nxd4 {[%emt 0:00:46]} Nxd4 {[%emt 0:00:08]} 19. Nb5 {[%emt 0:00:07]} Nc6 {[%emt 0:01:05]} 20. Qe2 {[%emt 0:02:06]} f5 {[%emt 0:03:17]} 21. f3 {[%emt 0:14:11]} fxe4 {[%emt 0:02:32]} 22. fxe4 {[%emt 0:00:10]} Bg4 {[%emt 0:00:20]} 23. Qd2 {[%emt 0:05:06]} Ne5 {[%emt 0:02:01]} 24. Bf4 {[%emt 0:01:41]} Bh3 {[%emt 0:04:43]} 25. Bxe5 {[%emt 0:09:25]} 1/2-1/2

[Event "Kragero Resort International 2022"]
[Site "Kragero"]
[Date "2022.02.26"]
[Round "8.18"]
[White "Alinasab, Mobina"]
[Black "Kenneskog, Theodor"]
[Result "1-0"]
[ECO "B90"]
[WhiteElo "2325"]
[BlackElo "2344"]
[Annotator "NA"]
[PlyCount "69"]
[EventDate "2022.02.23"]
[EventType "swiss"]
[EventCountry "NOR"]
[SourceTitle "playchess.com"]
[Source "ChessBase"]
[SourceQuality "1"]
[TimeControl "5400+30"]

1. e4 {[%emt 0:03:01]} c5 {[%emt 0:00:10]} 2. Nf3 {[%emt 0:00:13]} d6 {[%emt 0:00:06]} 3. d4 {[%emt 0:00:05]} cxd4 {[%emt 0:00:06]} 4. Nxd4 {[%emt 0:00:05]} Nf6 {[%emt 0:00:06]} 5. Nc3 {[%emt 0:00:06]} a6 {[%emt 0:00:06]} 6. Be3 {[%emt 0:00:12]} e5 {[%emt 0:00:08]} 7. Nf3 {[%emt 0:00:08]} Qc7 {[%emt 0:00:48]} 8. Be2 {[%emt 0:00:09]} Be7 {[%emt 0:00:36]} 9. a4 {[%emt 0:00:28]} b6 {[%emt 0:01:24]} 10. Bg5 {[%emt 0:03:08]} Nbd7 {[%emt 0:02:31]} 11. O-O {[%emt 0:01:08]} O-O {[%emt 0:01:30]} 12. Nd2 {[%emt 0:00:11]} h6 {[%emt 0:10:39]} 13. Bh4 {[%emt 0:05:09]} Bb7 {[%emt 0:01:04]} 14. Bc4 {[%emt 0:00:13]} Nc5 {[%emt 0:12:15]} 15. Bxf6 {[%emt 0:01:07]} Bxf6 {[%emt 0:00:06]} 16. Bd5 {[%emt 0:00:46]} Bg5 {[%emt 0:00:38]} 17. Nc4 {[%emt 0:02:27]} Bxd5 {[%emt 0:08:09]} 18. Nxd5 {[%emt 0:12:33]} Qc6 {[%emt 0:00:20]} 19. Ncxb6 {[%emt 0:04:08]} Rab8 {[%emt 0:01:21]} 20. a5 {[%emt 0:00:55]} Qb5 {[%emt 0:38:15]} 21. Qb1 {[%emt 0:06:26]} Qc6 {[%emt 0:02:44]} 22. Qe1 {[%emt 0:02:54]} Bd8 {[%emt 0:01:43]} 23. b4 {[%emt 0:03:45]} Ne6 {[%emt 0:00:46]} 24. c3 {[%emt 0:00:20]} f5 {[%emt 0:01:09]} 25. exf5 {[%emt 0:00:55]} Nf4 {[%emt 0:05:17]} 26. Rd1 {[%emt 0:03:49]} Re8 {[%emt 0:06:46]} 27. Nxf4 {[%emt 0:03:42]} exf4 {[%emt 0:00:07]} 28. Rxd6 {[%emt 0:00:17]} Qb5 {[%emt 0:04:02]} 29. c4 {[%emt 0:01:10]} Rxe1 {[%emt 0:01:26]} 30. cxb5 {[%emt 0:00:07]} Rxf1+ {[%emt 0:00:27]} 31. Kxf1 {[%emt 0:00:06]} axb5 {[%emt 0:00:23]} 32. Nd5 {[%emt 0:01:35]} Rc8 {[%emt 0:00:28]} 33. Rd7 {[%emt 0:00:20]} Bg5 {[%emt 0:00:49]} 34. a6 {[%emt 0:01:07]} Rc1+ {[%emt 0:00:26]} 35. Ke2 {[%emt 0:00:07]} 1-0

[Event "Kragero Resort International 2022"]
[Site "Kragero"]
[Date "2022.02.26"]
[Round "8.19"]
[White "Shehzad, Shazil"]
[Black "Abdrlauf, Elham"]
[Result "0-1"]
[ECO "B11"]
[WhiteElo "2182"]
[BlackElo "2343"]
[Annotator "NA"]
[PlyCount "80"]
[EventDate "2022.02.23"]
[EventType "swiss"]
[EventCountry "NOR"]
[SourceTitle "playchess.com"]
[Source "ChessBase"]
[SourceQuality "1"]
[TimeControl "5400+30"]

1. e4 {[%emt 0:04:44]} c6 {[%emt 0:00:06]} 2. Nc3 {[%emt 0:00:14]} d5 {[%emt 0:00:30]} 3. Nf3 {[%emt 0:00:05]} dxe4 {[%emt 0:00:29]} 4. Nxe4 {[%emt 0:00:08]} Nf6 {[%emt 0:00:04]} 5. Qe2 {[%emt 0:00:16]} Nxe4 {[%emt 0:00:02]} 6. Qxe4 {[%emt 0:00:07]} Nd7 {[%emt 0:00:02]} 7. Bc4 {[%emt 0:00:11]} Nf6 {[%emt 0:00:04]} 8. Ne5 {[%emt 0:00:05]} e6 {[%emt 0:00:03]} 9. Qe2 {[%emt 0:00:07]} b5 {[%emt 0:00:05]} 10. Bd3 {[%emt 0:00:15]} Qc7 {[%emt 0:01:43]} 11. a4 {[%emt 0:00:05]} Bd6 {[%emt 0:00:36]} 12. Nxc6 {[%emt 0:00:07]} b4 {[%emt 0:00:05]} 13. Nd4 {[%emt 0:00:08]} a6 {[%emt 0:00:11]} 14. Nf5 {[%emt 0:00:33]} Be5 {[%emt 0:00:34]} 15. Nxg7+ {[%emt 0:03:18]} Kf8 {[%emt 0:00:03]} 16. Nh5 {[%emt 0:00:26]} Nxh5 {[%emt 0:00:06]} 17. Qxh5 {[%emt 0:00:08]} Bb7 {[%emt 0:00:02]} 18. O-O {[%emt 0:06:45]} Rg8 {[%emt 0:07:33]} 19. f3 {[%emt 0:03:14]} f5 {[%emt 0:00:04]} 20. Qh6+ {[%emt 0:04:16]} Kf7 {[%emt 0:06:10]} 21. c3 {[%emt 0:08:55]} Rg6 {[%emt 0:01:01]} 22. Qh5 {[%emt 0:01:39]} Rag8 {[%emt 0:21:41]} 23. Rf2 {[%emt 0:04:01]} Kf8 {[%emt 0:01:47]} 24. Bf1 {[%emt 0:01:46]} Bf4 {[%emt 0:00:13]} 25. d4 {[%emt 0:05:11]} Bxc1 {[%emt 0:00:50]} 26. Rxc1 {[%emt 0:05:42]} Qf4 {[%emt 0:00:01]} 27. Re1 {[%emt 0:02:37]} Rh6 {[%emt 0:00:08]} 28. Qxh6+ {[%emt 0:00:12]} Qxh6 {[%emt 0:00:02]} 29. cxb4 {[%emt 0:00:14]} Qf4 {[%emt 0:01:28]} 30. Rxe6 {[%emt 0:04:32]} Qxd4 {[%emt 0:00:04]} 31. b5 {[%emt 0:01:40]} axb5 {[%emt 0:00:19]} 32. axb5 {[%emt 0:00:39]} Bxf3 {[%emt 0:02:57]} 33. Ra6 {[%emt 0:03:00]} Be4 {[%emt 0:00:56]} 34. b3 {[%emt 0:04:35]} Rg7 {[%emt 0:01:53]} 35. Ra4 {[%emt 0:01:10]} Qe3 {[%emt 0:00:24]} 36. Rc4 {[%emt 0:00:42]} Rd7 {[%emt 0:00:22]} 37. Rc8+ {[%emt 0:02:18]} Kg7 {[%emt 0:00:57]} 38. b6 {[%emt 0:00:44]} Rd2 {[%emt 0:00:13]} 39. Rc7+ {[%emt 0:00:06]} Kh6 {[%emt 0:00:09]} 40. Rc6+ {[%emt 0:00:12]} Bxc6 {[%emt 0:00:07]} 0-1

[Event "Kragero Resort International 2022"]
[Site "Kragero"]
[Date "2022.02.26"]
[Round "8.20"]
[White "Fischer, Daniel"]
[Black "Altarbosh, Ward"]
[Result "0-1"]
[ECO "C13"]
[WhiteElo "2340"]
[BlackElo "2221"]
[Annotator "NA"]
[PlyCount "120"]
[EventDate "2022.02.23"]
[EventType "swiss"]
[EventCountry "NOR"]
[SourceTitle "playchess.com"]
[Source "ChessBase"]
[SourceQuality "1"]
[TimeControl "5400+30"]

1. e4 {[%emt 0:01:27]} e6 {[%emt 0:00:04]} 2. d4 {[%emt 0:00:05]} d5 {[%emt 0:00:04]} 3. Nc3 {[%emt 0:00:04]} Nf6 {[%emt 0:00:04]} 4. Bg5 {[%emt 0:00:16]} dxe4 {[%emt 0:00:06]} 5. Nxe4 {[%emt 0:00:06]} Be7 {[%emt 0:00:06]} 6. Nxf6+ {[%emt 0:00:07]} Bxf6 {[%emt 0:00:06]} 7. Bxf6 {[%emt 0:00:04]} Qxf6 {[%emt 0:00:05]} 8. Nf3 {[%emt 0:00:07]} O-O {[%emt 0:00:10]} 9. Qd3 {[%emt 0:00:04]} c5 {[%emt 0:00:13]} 10. O-O-O {[%emt 0:01:44]} cxd4 {[%emt 0:00:08]} 11. Qxd4 {[%emt 0:05:17]} Qxd4 {[%emt 0:00:04]} 12. Rxd4 {[%emt 0:00:11]} Nc6 {[%emt 0:00:14]} 13. Rd6 {[%emt 0:00:22]} Rd8 {[%emt 0:00:37]} 14. Rxd8+ {[%emt 0:00:45]} Nxd8 {[%emt 0:00:01]} 15. Bd3 {[%emt 0:05:14]} Bd7 {[%emt 0:00:28]} 16. Ne5 {[%emt 0:01:26]} Be8 {[%emt 0:00:14]} 17. Rd1 {[%emt 0:07:38]} Nc6 {[%emt 0:00:31]} 18. Nc4 {[%emt 0:01:29]} Rd8 {[%emt 0:04:07]} 19. Be4 {[%emt 0:15:18]} Nd4 {[%emt 0:00:58]} 20. Rd2 {[%emt 0:11:09]} Bb5 {[%emt 0:03:22]} 21. Na5 {[%emt 0:03:54]} b6 {[%emt 0:05:16]} 22. Nb7 {[%emt 0:03:37]} Rd7 {[%emt 0:01:52]} 23. c3 {[%emt 0:12:43]} Ne2+ {[%emt 0:01:12]} 24. Kd1 {[%emt 0:00:42]} Nf4 {[%emt 0:01:11]} 25. Nd6 {[%emt 0:02:49]} Ba6 {[%emt 0:05:58]} 26. Bc6 {[%emt 0:00:38]} Rd8 {[%emt 0:20:49]} 27. c4 {[%emt 0:09:58]} Kf8 {[%emt 0:04:25]} 28. b3 {[%emt 0:02:16]} Ke7 {[%emt 0:01:36]} 29. Ne4 {[%emt 0:00:16]} Rxd2+ {[%emt 0:00:44]} 30. Nxd2 {[%emt 0:00:36]} Nd3 {[%emt 0:00:26]} 31. f3 {[%emt 0:02:28]} Nb4 {[%emt 0:00:10]} 32. Ba8 {[%emt 0:02:09]} Nxa2 {[%emt 0:00:33]} 33. Kc2 {[%emt 0:00:03]} Bc8 {[%emt 0:01:01]} 34. Kb2 {[%emt 0:01:16]} Nb4 {[%emt 0:00:03]} 35. Kc3 {[%emt 0:00:04]} a5 {[%emt 0:00:06]} 36. c5 {[%emt 0:00:31]} bxc5 {[%emt 0:00:28]} 37. Kc4 {[%emt 0:00:24]} Na6 {[%emt 0:00:43]} 38. Ne4 {[%emt 0:01:52]} e5 {[%emt 0:02:40]} 39. Nxc5 {[%emt 0:06:07]} Nxc5 {[%emt 0:00:57]} 40. Kxc5 {[%emt 0:00:01]} Be6 {[%emt 0:00:06]} 41. Kb5 {[%emt 0:01:34]} Bxb3 {[%emt 0:00:09]} 42. Kxa5 {[%emt 0:00:03]} Kd6 {[%emt 0:00:13]} 43. Be4 {[%emt 0:00:05]} Kc5 {[%emt 0:13:35]} 44. Bxh7 {[%emt 0:00:21]} g6 {[%emt 0:00:07]} 45. h4 {[%emt 0:00:32]} Bd5 {[%emt 0:01:12]} 46. Ka6 {[%emt 0:00:45]} Kd6 {[%emt 0:04:24]} 47. Kb6 {[%emt 0:00:38]} Ba8 {[%emt 0:01:56]} 48. Ka7 {[%emt 0:00:25]} Bd5 {[%emt 0:01:44]} 49. Kb6 {[%emt 0:00:01]} Ke7 {[%emt 0:05:51]} 50. Kc5 {[%emt 0:00:08]} Ba8 {[%emt 0:00:13]} 51. h5 {[%emt 0:00:42]} gxh5 {[%emt 0:00:09]} 52. Bd3 {[%emt 0:00:42]} h4 {[%emt 0:00:03]} 53. Be2 {[%emt 0:00:53]} Kf6 {[%emt 0:02:02]} 54. Kd6 {[%emt 0:00:04]} Kf5 {[%emt 0:01:23]} 55. Ke7 {[%emt 0:00:05]} Kf4 {[%emt 0:00:27]} 56. Kf6 {[%emt 0:01:22]} Kg3 {[%emt 0:00:05]} 57. Bf1 {[%emt 0:02:15]} Kf2 {[%emt 0:00:34]} 58. Bb5 {[%emt 0:00:04]} Kxg2 {[%emt 0:00:48]} 59. Bd7 {[%emt 0:00:04]} Bxf3 {[%emt 0:00:16]} 60. Kxe5 {[%emt 0:00:13]} h3 {[%emt 0:00:02]} 0-1